Cogmind - Beta 14 @@@ ROGUE MODE // 2024.09.12 @ 15:14:18 Player: FreshFromage Result: Destroyed by H-71 Marshal with Heavy Mass Driver Performance ------------- Evolutions (6) 3000 Regions Visited (21) 4200 Robots Destroyed (214) 1070 Value Destroyed (7356) 7356 Prototype IDs (40) 800 Alien Tech Used (0) 0 Bonus (4412) 4412 TOTAL SCORE: 20838 Bonus ------- High Alert Combat Kills 583 Follower Combat Kills 1733 Network Hubs Disabled 200 Met Data Miner 300 Met Warlord at Base 500 MAIN.C Attacked Warlord 500 Built Enhanced Grunts 300 Met R17 at Cetus 500 Friendly Fire -204 Cogmind --------- Core Integrity 0/1150 Matter 60/300 Energy 99/100 System Corruption 13% Temperature Cool (0) Movement Core (50) Location -4/Factory Parts ------- > --- POWER (2) -------- (None) > --- PROPULSION (7) --- (None) > --- UTILITY (8) ------ Advanced Signal Interpreter Experimental Target Analyzer Core Analyzer > --- WEAPON (2) ------- (None) > --- INVENTORY (5) ---- Improved Cooling System Advanced Matter Compressor (27) Advanced Sensor Array Improved Transmission Jammer Makeshift Light Armor Plating Peak State ------------ > --- POWER ------------ Vortex Chain Reactor > --- PROPULSION ------- Combat Gravmag System Combat Gravmag System Combat Gravmag System Improved Antigrav System Improved Antigrav System Cooled Antigrav System Cooled Antigrav System > --- UTILITY ---------- Large Storage Unit Enhanced Optical Array Advanced Signal Interpreter Advanced Targeting Computer Weapon Mount Experimental Target Analyzer Core Analyzer Thermal Barrier > --- WEAPON ----------- Heavy Autocannon > --- INVENTORY -------- Light Antimatter Reactor Combat Airjet Improved Linear Gravjet Improved Cooling System Advanced Matter Compressor Improved Sensor Array Advanced Sensor Array Kinecellerator Improved Transmission Jammer ECM Suite Improved Medium Armor Plating Makeshift Light Armor Plating Advanced Focal Shield Heavy Rocket Launcher Phasing Sabre [Rating: 135] Favorites ----------- Power Meta Core Engine Ion Engine Power Core Meta Core Reactor Vortex Chain Reactor Propulsion Aerolev Unit Treads Light Treads Leg Aluminum Leg Hover Unit Aerolev Unit Utility Large Storage Unit Device Cooling System Storage Large Storage Unit Processor Advanced Targeting Computer Hackware Hacking Suite Protection Light Armor Plating Weapon Light Cannon Energy Gun Medium Laser Ballistic Gun Barrage Gun Ballistic Cannon Light Cannon Launcher Grenade Launcher Special Weapon Multitool Impact Weapon Hammer Slashing Weapon Great Axe Build | -11 -10 -10 -8 -7 -7 -7 -7 -6 -6 -6 -6 -6 -6 -5 -5 -5 -5 -4 -4 -4 -4 ------- Run | Yrd Mat Sub Mat Fac Low Low Dat Pro Fac Ext Cet Arc Hub Fac Upp Upp War Pro Fac Was Fac Slots Evolved 12 | . . . 4 2 . . . . 2 . . . . 2 . . . . 2 . . Power 1 | . . . . . . . . . 1 . . . . . . . . . . . . Propulsion 5 | . . . 2 1 . . . . 1 . . . . . . . . . 1 . . Utility 6 | . . . 2 1 . . . . . . . . . 2 . . . . 1 . . Weapon . | . . . . . . . . . . . . . . . . . . . . . . Parts Attached 322 | 7 20 33 31 30 8 3 . 5 11 10 7 6 27 35 7 14 16 1 2 . 49 Power 10 | 1 1 2 . . . . . . 1 . . . 1 1 . . 1 . . . 2 Engine 3 | 1 . 1 . . . . . . . . . . 1 . . . . . . . . Core 5 | . 1 1 . . . . . . 1 . . . . 1 . . . . . . 1 Reactor 2 | . . . . . . . . . . . . . . . . . 1 . . . 1 Propulsion 65 | 2 8 4 8 5 . . . . 2 . 1 3 7 6 . . 5 . 1 . 13 Treads 14 | . 2 4 8 . . . . . . . . . . . . . . . . . . Leg 8 | 2 6 . . . . . . . . . . . . . . . . . . . . Wheel . | . . . . . . . . . . . . . . . . . . . . . . Hover 43 | . . . . 5 . . . . 2 . 1 3 7 6 . . 5 . 1 . 13 Flight . | . . . . . . . . . . . . . . . . . . . . . . Utility 132 | 1 3 4 13 5 2 . . 5 3 4 2 1 10 24 3 14 5 1 1 . 31 Device 85 | . 1 2 6 1 1 . . 3 2 2 . 1 4 17 1 14 4 1 . . 25 Storage 6 | 1 1 . 1 . . . . . . . . . . 2 . . . . . . 1 Processor 6 | . . . 1 1 . . . . 1 . . . . 1 . . 1 . 1 . . Hackware 1 | . . . . 1 . . . . . . . . . . . . . . . . . Protection 34 | . 1 2 5 2 1 . . 2 . 2 2 . 6 4 2 . . . . . 5 Artifact . | . . . . . . . . . . . . . . . . . . . . . . Weapon 115 | 3 8 23 10 20 6 3 . . 5 6 4 2 9 4 4 . 5 . . . 3 Energy Gun 1 | 1 . . . . . . . . . . . . . . . . . . . . . Energy Cannon . | . . . . . . . . . . . . . . . . . . . . . . Ballistic Gun 15 | 2 . 3 4 3 1 1 . . . . . . . 1 . . . . . . . Ballistic Cannon 45 | . 4 10 3 4 1 2 . . 2 4 2 1 3 2 2 . 4 . . . 1 Launcher 33 | . 3 4 2 7 4 . . . . 2 2 . 5 . 1 . 1 . . . 2 Special Weapon 1 | . . . . 1 . . . . . . . . . . . . . . . . . Impact Weapon 3 | . 1 2 . . . . . . . . . . . . . . . . . . . Slashing Weapon 17 | . . 4 1 5 . . . . 3 . . 1 1 1 1 . . . . . . Piercing Weapon . | . . . . . . . . . . . . . . . . . . . . . . Special Melee Weapon . | . . . . . . . . . . . . . . . . . . . . . . Unidentified Prototypes 12 | . . . 1 . . . . . . . 1 . . 1 . . 8 . . . 1 Parts Lost 40 | . . 4 5 . . . . . . . 3 2 6 2 . . . . . . 18 Power 4 | . . 1 . . . . . . . . . . . . . . . . . . 3 Propulsion 21 | . . 1 2 . . . . . . . 2 2 4 2 . . . . . . 8 Utility 8 | . . 1 . . . . . . . . . . 1 . . . . . . . 6 Weapon 7 | . . 1 3 . . . . . . . 1 . 1 . . . . . . . 1 Highest Loss Streak 12 | . . 2 3 . . . . . . . 2 2 4 1 . . . . . . 12 To Critical Strikes . | . . . . . . . . . . . . . . . . . . . . . . Average Slot Usage (%) 95 | . 99 99 98 99 100 100 100 100 100 100 94 85 96 90 94 94 89 88 89 89 83 Core 8 | . 12 10 7 7 7 7 7 7 13 13 13 13 6 10 11 11 2 . . . . Treads 9 | . 1 28 34 . . . . . . . . . . . . . . . . . . Leg 3 | . 26 . . . . . . . . . . . . . . . . . . . . Hover 19 | . . . . 37 38 38 38 38 40 40 37 25 38 30 35 35 35 35 36 36 33 Device 8 | . . 2 11 14 14 15 15 13 13 12 6 6 10 15 15 16 12 11 10 10 8 Storage 8 | . 14 13 7 7 7 7 7 7 6 6 6 6 6 5 5 5 5 5 5 5 4 Processor 10 | . . . 4 14 15 15 15 15 13 13 13 13 13 16 17 17 21 23 26 26 25 Protection 5 | . 13 11 6 . . . . 1 . . 5 5 . . . . . . . . . Ballistic Gun 2 | . . 4 8 3 . 3 . . . . . . . 1 . . . . . . . Ballistic Cannon 10 | . 20 12 13 3 . 11 15 15 9 12 8 9 9 3 4 5 4 5 5 5 4 Launcher 2 | . 2 6 . 3 13 . . . . . 1 . 1 . . . . . . . . Impact Weapon 1 | . 5 2 . . . . . . . . . . . . . . . . . . . Peak Build Rating 135 | 6 10 31 43 56 57 56 55 56 69 71 75 76 82 93 92 94 118 120 131 131 135 Average Rating 55 | 5 9 14 40 54 51 55 55 54 65 69 70 66 70 82 88 90 103 119 130 131 119 On Entrance 66 | . 6 10 31 42 51 57 55 55 54 69 70 71 70 49 88 90 88 118 120 131 131 Naked Turns . | . . . . . . . . . . . . . . . . . . . . . . Heaviest Build 98 | 13 34 41 51 43 46 38 38 52 44 58 56 55 63 60 55 57 93 93 92 92 98 Greatest Support 102 | 20 40 60 102 82 40 40 40 40 52 52 52 55 59 74 73 73 80 80 92 92 92 Greatest Overweight (x) 1 | 1 1 1 . 1 1 . . 1 . 1 1 1 1 1 . . 1 1 . . 1 Average Overweight (x) . | . . . . . . . . . . . . . . . . . . 1 . . . Largest Inventory Capacity 15 | 8 15 15 15 15 15 15 15 15 15 15 15 15 15 15 15 15 15 15 15 15 15 Average Capacity 14 | 7 13 15 15 15 15 15 15 15 15 15 15 15 15 15 15 15 15 15 15 15 14 Most Carried 15 | 2 15 15 15 15 15 15 15 15 15 15 15 14 15 15 15 15 15 15 14 14 15 Average Carried 14 | 1 11 14 14 14 14 15 15 15 14 15 14 14 14 14 14 15 14 15 13 14 13 Final Capacity 15 | 8 15 15 15 15 15 15 15 15 15 15 15 15 15 15 15 15 15 15 15 15 5 Final Carried 15 | 2 15 12 15 14 15 15 15 15 15 15 14 14 15 15 15 15 15 15 14 14 5 Class Distribution -------------------- 52% | Mutant 19% | Scout 6% | Skirmisher 4% | Derelict-Tank 3% | Scavenger-Mutant Dominant Class ---------------- Mutant | -10/Materials Mutant | -10/Subcaves Skirmisher | -8/Materials Mutant | -7/Factory Mutant | -7/Lower Caves Mutant | -7/Lower Caves Mutant | -7/Data Miner Mutant | -6/Proximity Caves Sprinter | -6/Factory Mutant | -6/Extension Commander-Mutant | -6/Cetus Commander-Mutant | -6/Archives Scavenger-Mutant | -6/Hub_04(d) Scout | -5/Factory Scout | -5/Upper Caves Scout | -5/Upper Caves Scout | -5/Warlord Commander-Skirmisher | -4/Proximity Caves Commander-Skirmisher | -4/Factory Scout | -4/Waste Scout | -4/Factory Resources | -11 -10 -10 -8 -7 -7 -7 -7 -6 -6 -6 -6 -6 -6 -5 -5 -5 -5 -4 -4 -4 -4 ----------- Run | Yrd Mat Sub Mat Fac Low Low Dat Pro Fac Ext Cet Arc Hub Fac Upp Upp War Pro Fac Was Fac Matter Collected 9095 | 270 678 757 1278 443 449 48 . 78 107 429 313 139 604 1113 53 402 209 10 . 9 1706 Remotely . | . . . . . . . . . . . . . . . . . . . . . . Salvage Created 7365 | 63 839 428 1385 360 142 . . 29 124 361 304 289 362 1195 24 97 . . . 225 1138 Parts 330 | . 33 35 64 19 15 . . 4 5 9 6 20 19 42 8 3 . . . 1 47 Haulers Intercepted 4 | . 1 . . . . . . . . 1 . . 1 . . . . . . . 1 Recyclers Shooed 7 | . 1 . 1 1 . . . . . . . . . 4 . . . . . . . Parts Field Recycled . | . . . . . . . . . . . . . . . . . . . . . . Retrieved Matter . | . . . . . . . . . . . . . . . . . . . . . . Parts Self-Destructed 44 | . . 16 . . 10 . . 4 . . . . . . 3 3 . 8 . . . Prevented 2 | . . . . . . . . . . . . . . . . 2 . . . . . Kills | -11 -10 -10 -8 -7 -7 -7 -7 -6 -6 -6 -6 -6 -6 -5 -5 -5 -5 -4 -4 -4 -4 ------- Run | Yrd Mat Sub Mat Fac Low Low Dat Pro Fac Ext Cet Arc Hub Fac Upp Upp War Pro Fac Was Fac Combat Hostiles Destroyed 135 | . 16 18 35 5 7 . . 2 . 3 8 . 4 9 5 3 . . . 1 19 Melee 3 | . . 2 1 . . . . . . . . . . . . . . . . . . Guns 8 | . . 1 7 . . . . . . . . . . . . . . . . . . Cannons 69 | . 11 2 25 1 1 . . 2 . 1 2 . . 9 . 3 . . . 1 11 AOE 55 | . 5 13 2 4 6 . . . . 2 6 . 4 . 5 . . . . . 8 Classes Destroyed 19 | 1 7 2 3 1 . . . 1 . 2 . . 1 . . . . . . 1 . Worker 11 | . 1 . 1 . . . . . 1 1 . . 3 4 . . . . . . . Builder 9 | . 3 . 2 . . . . . . 2 . . 2 . . . . . . . . Tunneler 3 | . 2 . . . . . . . . . . . . . . . . . . . 1 Hauler 4 | . 1 . . . . . . . . 1 . . 1 . . . . . . . 1 Recycler 25 | 1 4 . 4 3 . . . . 1 1 . . 1 7 . . . . . . 3 Mechanic 1 | . . . . . . . . . . . . . 1 . . . . . . . . Operator 11 | . . . 1 . . . . . . . . 9 . . . . . . . . 1 Drone 2 | . . . . . . . . 1 . . . . . . . . . . . . 1 Watcher 15 | . 3 . 3 1 . . . . . 1 . . . 4 . . . . . . 3 Swarmer 35 | . 6 1 8 4 6 . . . . . . . . . 5 1 . . . . 4 Grunt 44 | . 10 . 19 . . . . . . . 5 . 4 1 . 1 . . . . 4 Brawler 1 | . . . 1 . . . . . . . . . . . . . . . . . . Sentry 12 | . . 1 6 . 1 . . 1 . 1 . . . 1 . 1 . . . . . Hunter 4 | . . . 1 . . . . . . . 1 . . . . . . . . . 2 Programmer 16 | . . . . 1 . . . . . . . . . 7 . . . . . . 8 Behemoth 2 | . . . . . . . . . . 2 . . . . . . . . . . . Compactor 1 | . . . . . . . . . . . . . . . . . . . . 1 . Cetus Guard 2 | . . . . . . . . . . . 2 . . . . . . . . . . Subdweller 16 | . . 16 . . . . . . . . . . . . . . . . . . . Butcher 1 | . . . . . . . . . . 1 . . . . . . . . . . . Best Kill Streak 12 | 1 4 2 12 4 3 . . 1 2 8 6 6 4 3 5 1 . . . 1 5 Combat Bots Only 9 | . 3 2 9 4 3 . . 1 . 1 6 . 3 2 5 1 . . . 1 5 Max Kills in Single Turn 4 | 1 2 2 2 3 3 . . 1 1 2 2 1 3 1 2 1 . . . 1 4 Gunslinging . | . . . . . . . . . . . . . . . . . . . . . . Exploded 4 | . 2 2 2 3 3 . . . . 1 2 . 1 . 2 . . . . . 4 Melee 1 | . . 1 1 . . . . . . . . . . . . . . . . . . Uniques/NPCs Destroyed . | . . . . . . . . . . . . . . . . . . . . . . Combat | -11 -10 -10 -8 -7 -7 -7 -7 -6 -6 -6 -6 -6 -6 -5 -5 -5 -5 -4 -4 -4 -4 -------- Run | Yrd Mat Sub Mat Fac Low Low Dat Pro Fac Ext Cet Arc Hub Fac Upp Upp War Pro Fac Was Fac Hostile Shots Fired 910 | . 51 46 147 9 37 . . 46 . 36 32 5 50 32 5 13 . 1 . . 400 Missed 369 | . 13 15 37 4 21 . . 16 . 17 9 2 18 11 3 5 . 1 . . 197 Damage Taken 9075 | . 362 765 1574 81 120 . . 212 . 163 466 76 1008 424 35 180 . . . . 3609 Core 1841 | . 28 74 188 . . . . 12 . 28 24 . 201 40 1 44 . . . . 1201 Absorbed by Shields 145 | . . . . . . . . . . 28 106 . . 11 . . . . . . . Ignored by Resistances 351 | . . . 80 . 11 . . 29 . 28 50 . . . . . . . . . 153 Regen/Repaired (Parts) 484 | . . . 12 . . . . . . . . . . . . . 40 . . . 432 Core Remaining (%) 80 | 100 . 59 65 . . . . 98 . . . . 70 . . . . 91 . . . Volleys Fired 465 | 13 47 54 86 24 9 . . 8 . 17 22 14 27 59 5 15 . . . 6 59 Largest 3 | 1 2 2 3 2 2 . . 2 . 2 2 2 2 1 1 1 . . . 1 1 Hottest 113 | 50 70 78 113 69 69 . . 83 . 83 101 101 101 60 39 60 . . . 90 90 Shots Fired 740 | 13 88 68 232 28 13 . . 16 . 34 35 19 47 61 5 15 . . . 6 60 Gun 67 | 13 . 3 44 2 3 . . . . . . . . 2 . . . . . . . Cannon 561 | . 82 38 183 22 3 . . 16 . 18 27 19 24 59 . 15 . . . 6 49 Launcher 112 | . 6 27 5 4 7 . . . . 16 8 . 23 . 5 . . . . . 11 Special . | . . . . . . . . . . . . . . . . . . . . . . Kinetic 628 | . 82 54 227 24 6 . . 16 . 18 27 19 24 61 . 15 . . . 6 49 Thermal 13 | 13 . . . . . . . . . . . . . . . . . . . . . Explosive 99 | . 6 14 5 4 7 . . . . 16 8 . 23 . 5 . . . . . 11 Electromagnetic . | . . . . . . . . . . . . . . . . . . . . . . Robot Hit Streak 21 | 10 11 14 21 7 14 . . 7 . 6 18 6 9 21 . 10 . . . 14 13 Robot Miss Streak 5 | 1 3 1 5 . . . . 3 . 3 2 2 2 1 1 . . . . 2 3 Penetration Max . | . . . . . . . . . . . . . . . . . . . . . . Secondary Targets . | . . . . . . . . . . . . . . . . . . . . . . Shots Hit Robots 503 | 11 61 51 156 11 7 . . 11 2 12 22 29 21 57 . 10 . . . 4 38 Core Hits 347 | 1 29 34 71 12 12 . . 3 2 19 29 11 41 23 9 3 . . . 2 46 Critical Kills 1 | . 1 . . . . . . . . . . . . . . . . . . . . Critical Parts Destroyed 4 | . . . . . . . . . . . . . 4 . . . . . . . . Critical Strikes 50 | 1 1 2 14 . . . . . . 1 4 1 5 12 . 2 . . . . 7 Burn 1 | 1 . . . . . . . . . . . . . . . . . . . . . Destroy 5 | . . . . . . . . . . . 1 . 4 . . . . . . . . Blast 43 | . . 2 14 . . . . . . 1 3 1 1 12 . 2 . . . . 7 Smash 1 | . 1 . . . . . . . . . . . . . . . . . . . . Melee Attacks 107 | . 13 36 1 22 . . . . 6 . . 17 3 9 . . . . . . . Impact 32 | . 13 19 . . . . . . . . . . . . . . . . . . . Slashing 75 | . . 17 1 22 . . . . 6 . . 17 3 9 . . . . . . . Piercing . | . . . . . . . . . . . . . . . . . . . . . . Sneak Attacks 32 | . 10 1 . 3 . . . . 2 . . 15 . 1 . . . . . . . Combat Hostiles . | . . . . . . . . . . . . . . . . . . . . . . Follow-up Attacks . | . . . . . . . . . . . . . . . . . . . . . . Damage Inflicted 25215 | 136 1802 2282 3451 652 416 . . 235 174 1406 1453 1782 2566 3175 421 556 . . . 364 4344 Guns 888 | 136 . 64 553 40 52 . . . . . . . . 43 . . . . . . . Cannons 12566 | . 839 495 2445 66 77 . . 235 . 247 611 305 360 2892 . 556 . . . 364 3074 Explosions 8591 | . 346 1479 387 229 287 . . . . 1159 842 . 2206 . 421 . . . . . 1235 Melee 3069 | . 617 244 . 317 . . . . 174 . . 1477 . 240 . . . . . . . Ramming 101 | . . . 66 . . . . . . . . . . . . . . . . . 35 Kinetic 13999 | . 839 1240 2998 106 129 . . 235 . 247 611 305 360 2935 . 556 . . . 364 3074 Thermal 372 | 136 . . . . . . . . . . . . . . . . . . . . 236 Explosive 6908 | . 346 798 387 229 287 . . . . 1159 842 . 1641 . 421 . . . . . 798 Electromagnetic 766 | . . . . . . . . . . . . . 565 . . . . . . . 201 Impact 648 | . 617 31 . . . . . . . . . . . . . . . . . . . Slashing 2421 | . . 213 . 317 . . . . 174 . . 1477 . 240 . . . . . . . Piercing . | . . . . . . . . . . . . . . . . . . . . . . Highest Corruption 13 | . . . . . . . . . . . . . 9 3 3 3 3 . . 5 13 Average Corruption 3 | . . . . . . . . . . . . . 2 1 3 3 3 . . 5 5 Corruption Purged 5 | . . . . . . . . . . . . . . . . . . . . . 5 Corruption Blocked . | . . . . . . . . . . . . . . . . . . . . . . Effects 87 | . . . . . . . . . . . . . 6 10 3 16 1 . . 3 48 Message Errors 18 | . . . . . . . . . . . . . . 2 . 3 . . . 3 10 Matter Fused 21 | . . . . . . . . . . . . . 2 1 3 4 1 . . . 10 Heat Flow Errors 15 | . . . . . . . . . . . . . 2 3 . 2 . . . . 8 Energy Discharges 10 | . . . . . . . . . . . . . 1 . . 2 . . . . 7 Parts Rejected 2 | . . . . . . . . . . . . . . . . . . . . . 2 Parts Fused 1 | . . . . . . . . . . . . . . . . . . . . . 1 Data Loss (minor) 12 | . . . . . . . . . . . . . 1 1 . 4 . . . . 6 Data Loss (major) 2 | . . . . . . . . . . . . . . . . . . . . . 2 Misfires 3 | . . . . . . . . . . . . . . 2 . . . . . . 1 Alerts 3 | . . . . . . . . . . . . . . 1 . 1 . . . . 1 Overload Shots . | . . . . . . . . . . . . . . . . . . . . . . Overflow Damage 1932 | . 186 . 28 147 6 . . . . 26 . 484 94 350 2 44 . . . . 565 Projectiles 910 | . 6 . 19 . 6 . . . . . . 1 . 323 . 44 . . . . 511 Explosions 187 | . . . 7 4 . . . . . 26 . . 94 . 2 . . . . . 54 Melee 835 | . 180 . 2 143 . . . . . . . 483 . 27 . . . . . . . Knockbacks 79 | . 13 4 21 1 . . . . . 1 . 5 5 13 . . . . . . 16 Impact 2 | . 1 . . . . . . . . . . . . . . . . . . . 1 Kinetic 74 | . 11 4 20 1 . . . . . 1 . 5 5 13 . . . . . . 14 Secondary 3 | . 1 . 1 . . . . . . . . . . . . . . . . . 1 Self-Inflicted Damage 321 | . . 70 103 . 1 . . . . 4 . . 95 . 5 . . . . . 43 Shots 14 | . . 4 3 . 1 . . . . 1 . . 1 . 1 . . . . . 3 Rammed 10 | . . . 7 . . . . . . . . . . . . . . . . . 3 Targets Rammed 12 | . . . 9 . . . . . . . . . . . . . . . . . 3 Kicked . | . . . . . . . . . . . . . . . . . . . . . . Crushed 2 | . . . 2 . . . . . . . . . . . . . . . . . . Highest Temperature 540 | 130 180 . 476 26 83 . . 228 . 8 2 . 251 300 . 326 . . 23 181 540 Average Temperature 84 | 65 49 . 112 14 37 . . 93 . 8 1 . 63 69 . 145 . . 12 97 91 Received Heat Transfer 1414 | . 108 90 657 . 36 . . 60 . 40 31 . 120 18 . 9 . . . . 245 Effects 12 | . . . 4 . . . . . . . . . . 1 . 1 . . . . 6 Shutdowns 2 | . . . 2 . . . . . . . . . . . . . . . . . . Energy Bleed 1 | . . . . . . . . . . . . . . 1 . . . . . . . Interference 6 | . . . . . . . . . . . . . . . . 1 . . . . 5 Damage (minor) 2 | . . . 1 . . . . . . . . . . . . . . . . . 1 Damage (major) 1 | . . . 1 . . . . . . . . . . . . . . . . . . Siege Activations . | . . . . . . . . . . . . . . . . . . . . . . Robots Corrupted 3 | . 3 . . . . . . . . . . . . . . . . . . . . Combat Hostiles . | . . . . . . . . . . . . . . . . . . . . . . Parts Fried 12 | . 9 . . . . . . . . . . . . . . . . . . . 3 Impact Corruptions 12 | . 10 . 1 . . . . . . . . . . . . . . . . . 1 Robots Melted 1 | 1 . . . . . . . . . . . . . . . . . . . . . Combat Hostiles . | . . . . . . . . . . . . . . . . . . . . . . Parts Melted 5 | 4 . . . . . . . . . 1 . . . . . . . . . . . Heat Transferred 681 | 481 . . . . . . . . . . . . . . . . . . . . 200 Parts Sabotaged . | . . . . . . . . . . . . . . . . . . . . . . Parts Stolen . | . . . . . . . . . . . . . . . . . . . . . . Parts Stripped . | . . . . . . . . . . . . . . . . . . . . . . Power Chain Reactions 1 | . . . . . . . . . . . . . . . . . . . . . 1 Alert | -11 -10 -10 -8 -7 -7 -7 -7 -6 -6 -6 -6 -6 -6 -5 -5 -5 -5 -4 -4 -4 -4 ------- Run | Yrd Mat Sub Mat Fac Low Low Dat Pro Fac Ext Cet Arc Hub Fac Upp Upp War Pro Fac Was Fac Peak Influence 1309 | 5 256 . 478 508 . . . . 662 404 566 410 1309 883 . . . . . 17 1114 Initial 633 | . 3 . . 175 . . . . 600 324 141 146 84 633 . . . . . . . Average 317 | 1 96 . 215 305 . . . . 623 303 421 293 660 695 . . . . . 2 284 Maximum Alert Level 4 | . 1 . 2 2 . . . . 2 2 2 2 4 3 . . . . . . 4 Low Security (%) 42 | 100 96 . 51 36 . . . . . 19 19 6 10 . . . . . 100 100 30 Level 1 26 | . 3 . 30 36 . . . . . 73 18 85 13 . . . . . . . 47 Level 2 22 | . . . 17 27 . . . . 100 7 62 8 34 57 . . . . . . 15 Level 3 7 | . . . . . . . . . . . . . 23 42 . . . . . . 4 Level 4 1 | . . . . . . . . . . . . . 18 . . . . . . . . Level 5 . | . . . . . . . . . . . . . . . . . . . . . . High Security . | . . . . . . . . . . . . . . . . . . . . . . Max Security . | . . . . . . . . . . . . . . . . . . . . . . Squads Dispatched 47 | . 2 . 6 3 . . . . 1 1 3 . 7 11 . . . . . . 13 Investigation 23 | . 2 . 3 2 . . . . . . 3 . 2 5 . . . . . . 6 Extermination 9 | . . . . 1 . . . . 1 . . . . 3 . . . . . . 4 Reinforcement 10 | . . . 3 . . . . . . 1 . . 2 2 . . . . . . 2 Assault 4 | . . . . . . . . . . . . . 2 1 . . . . . . 1 Garrison 1 | . . . . . . . . . . . . . 1 . . . . . . . . Intercept . | . . . . . . . . . . . . . . . . . . . . . . Searches Triggered . | . . . . . . . . . . . . . . . . . . . . . . Data Miner Redirects 6 | . . . . . . . . . . . 1 . 1 1 . . . . . . 3 Construction Impeded 2 | . . . 1 . . . . . . 1 . . . . . . . . . . . Haulers Reinforced . | . . . . . . . . . . . . . . . . . . . . . . Active Scanning Responses . | . . . . . . . . . . . . . . . . . . . . . . Cargo Convoy Interrupts 1 | . . . . . . . . . . . . . . . . . . . . . 1 Stealth | -11 -10 -10 -8 -7 -7 -7 -7 -6 -6 -6 -6 -6 -6 -5 -5 -5 -5 -4 -4 -4 -4 --------- Run | Yrd Mat Sub Mat Fac Low Low Dat Pro Fac Ext Cet Arc Hub Fac Upp Upp War Pro Fac Was Fac Distress Signals 11 | . 1 . 1 . . . . . . 2 2 . 2 1 . . . . . . 2 Communications Jammed . | . . . . . . . . . . . . . . . . . . . . . . Distress Signals . | . . . . . . . . . . . . . . . . . . . . . . Times Spotted 359 | . 26 14 48 8 3 . . 7 2 8 15 23 29 32 5 10 15 3 . 5 106 Peak Tracking Total 20 | . 4 2 6 4 2 . . 6 1 5 5 1 6 7 5 6 10 3 . 4 20 Tactical Retreats 39 | . 2 . 1 2 . . . 2 . . . . 4 6 . 4 1 . . . 17 Traps | -11 -10 -10 -8 -7 -7 -7 -7 -6 -6 -6 -6 -6 -6 -5 -5 -5 -5 -4 -4 -4 -4 ------- Run | Yrd Mat Sub Mat Fac Low Low Dat Pro Fac Ext Cet Arc Hub Fac Upp Upp War Pro Fac Was Fac Traps Triggered 12 | . . 1 1 . . . . . . 2 . . 2 1 . . . . 1 . 4 Indirectly . | . . . . . . . . . . . . . . . . . . . . . . Trap Hack Attempts . | . . . . . . . . . . . . . . . . . . . . . . Triggered . | . . . . . . . . . . . . . . . . . . . . . . Disarmed . | . . . . . . . . . . . . . . . . . . . . . . Reprogrammed . | . . . . . . . . . . . . . . . . . . . . . . Reused . | . . . . . . . . . . . . . . . . . . . . . . Traps Extracted . | . . . . . . . . . . . . . . . . . . . . . . Installed . | . . . . . . . . . . . . . . . . . . . . . . Triggered 8 | . . . . . . . . . . . . . . . . 1 7 . . . . Machines | -11 -10 -10 -8 -7 -7 -7 -7 -6 -6 -6 -6 -6 -6 -5 -5 -5 -5 -4 -4 -4 -4 ---------- Run | Yrd Mat Sub Mat Fac Low Low Dat Pro Fac Ext Cet Arc Hub Fac Upp Upp War Pro Fac Was Fac Machines Disabled 31 | . 1 1 4 . . . . . 1 1 . 2 14 1 . . . . . . 6 Max in Single Turn 7 | . 1 1 1 . . . . . 1 1 . . 7 1 . . . . . . 3 Garrison Access 8 | . . . 1 2 . . . . 1 . . . 2 1 . . . . . . 1 Network Hub 1 | . . . . . . . . . . . . . 1 . . . . . . . . Machines Repaired . | . . . . . . . . . . . . . . . . . . . . . . Machines Dismantled . | . . . . . . . . . . . . . . . . . . . . . . Machines Sabotaged . | . . . . . . . . . . . . . . . . . . . . . . Overloaded Fab Kills . | . . . . . . . . . . . . . . . . . . . . . . Hacking | -11 -10 -10 -8 -7 -7 -7 -7 -6 -6 -6 -6 -6 -6 -5 -5 -5 -5 -4 -4 -4 -4 --------- Run | Yrd Mat Sub Mat Fac Low Low Dat Pro Fac Ext Cet Arc Hub Fac Upp Upp War Pro Fac Was Fac Machines Accessed 87 | . 11 4 12 7 1 . 4 . 6 4 3 1 7 9 1 . 3 . . . 14 Terminals 45 | . 8 . 8 3 . . . . 4 3 3 . 6 4 . . . . . . 6 Fabricators 5 | . . . . . . . . . . . . . . 3 . . . . . . 2 Repair Stations 6 | . 1 . 1 1 . . . . . . . . . . . . . . . . 3 Recycling Units 7 | . 2 . 1 1 . . . . 1 1 . . . . . . . . . . 1 Scanalyzers 2 | . . . 1 . . . . . . . . . . . . . . . . . 1 Garrison Access 8 | . . . 1 2 . . . . 1 . . . 1 2 . . . . . . 1 Total Hacks 306 | . 32 6 46 14 1 . 28 . 10 5 9 25 15 32 1 . 9 . . . 73 Successful 179 | . 16 6 33 5 1 . 28 . 5 2 . 25 2 11 1 . 9 . . . 35 Failed 127 | . 16 . 13 9 . . . . 5 3 9 . 13 21 . . . . . . 38 Catastrophic 26 | . 1 . 1 4 . . . . 2 . 3 . 3 5 . . . . . . 7 Database Lockouts . | . . . . . . . . . . . . . . . . . . . . . . Manual 121 | . 25 . 30 7 . . . . 6 4 1 1 9 17 . . 1 . . . 20 Terminals 130 | . 25 . 32 6 . . . . 6 4 9 . 13 15 . . . . . . 20 Fabricators 16 | . . . . . . . . . . . . . . 11 . . . . . . 5 Repair Stations 44 | . 3 . 2 1 . . . . . . . . . . . . . . . . 38 Recycling Units 20 | . 4 . 3 2 . . . . 3 1 . . . . . . . . . . 7 Scanalyzers 8 | . . . 6 . . . . . . . . . . . . . . . . . 2 Garrison Access 18 | . . . 3 5 . . . . 1 . . . 2 6 . . . . . . 1 Terminal Hacks 93 | . 6 6 11 . 1 . 28 . . . . 25 2 4 1 . 9 . . . . Record 47 | . . 3 . . . . 11 . . . . 25 . . . . 8 . . . . Part Schematic 11 | . . . 1 . . . 10 . . . . . . . . . . . . . . Robot Schematic 4 | . . . . . . . 4 . . . . . . . . . . . . . . Robot Analysis 2 | . 2 . . . . . . . . . . . . . . . . . . . . Prototype ID Bank 9 | . 3 . 3 . . . 3 . . . . . . . . . . . . . . Open Door 4 | . . 1 . . 1 . . . . . . . . . 1 . 1 . . . . Level Access Points 1 | . . . 1 . . . . . . . . . . . . . . . . . . Branch Access Points 1 | . . . . . . . . . . . . . . 1 . . . . . . . Alert Level 1 | . . . 1 . . . . . . . . . . . . . . . . . . Unreport Threat 5 | . 1 . 2 . . . . . . . . . 1 1 . . . . . . . Locate Traps 2 | . . . 1 . . . . . . . . . 1 . . . . . . . . Recall Investigation 1 | . . . 1 . . . . . . . . . . . . . . . . . . Hauler Manifests 1 | . . . 1 . . . . . . . . . . . . . . . . . . Zone Layout 2 | . . . . . . . . . . . . . . 2 . . . . . . . Derelict Proto ID Bank 1 | . . 1 . . . . . . . . . . . . . . . . . . . Release Object 1 | . . 1 . . . . . . . . . . . . . . . . . . . Fabricator Hacks 7 | . . . . . . . . . . . . . . 5 . . . . . . 2 Load Schematic 4 | . . . . . . . . . . . . . . 3 . . . . . . 1 Build 3 | . . . . . . . . . . . . . . 2 . . . . . . 1 Repair Station Hacks 28 | . 1 . 2 . . . . . . . . . . . . . . . . . 25 Scan Component 16 | . 1 . 1 . . . . . . . . . . . . . . . . . 14 Repair 12 | . . . 1 . . . . . . . . . . . . . . . . . 11 Recycling Unit Hacks 8 | . . . 2 1 . . . . 2 1 . . . . . . . . . . 2 Process 4 | . . . 1 1 . . . . 1 . . . . . . . . . . . 1 Retrieve Matter 3 | . . . 1 . . . . . 1 . . . . . . . . . . . 1 Retrieve Components 1 | . . . . . . . . . . 1 . . . . . . . . . . . Scanalyzer 8 | . . . 6 . . . . . . . . . . . . . . . . . 2 Insert Component 4 | . . . 3 . . . . . . . . . . . . . . . . . 1 Analyze 4 | . . . 3 . . . . . . . . . . . . . . . . . 1 Garrison Access Hacks 2 | . . . . 1 . . . . 1 . . . . . . . . . . . . Seal Access 2 | . . . . 1 . . . . 1 . . . . . . . . . . . . Unauthorized Hacks 33 | . 9 . 12 3 . . . . 2 1 . . . 2 . . . . . . 4 Terminals 22 | . 7 . 10 1 . . . . 1 1 . . . 1 . . . . . . 1 Assimilate 2 | . . . 1 . . . . . 1 . . . . . . . . . . . . Botnet 9 | . 2 . 3 1 . . . . . 1 . . . 1 . . . . . . 1 Operators 1 | . . . 1 . . . . . . . . . . . . . . . . . . Skim 10 | . 5 . 5 . . . . . . . . . . . . . . . . . . Fabricators . | . . . . . . . . . . . . . . . . . . . . . . Repair Stations 1 | . . . . 1 . . . . . . . . . . . . . . . . . Mechanics 1 | . . . . 1 . . . . . . . . . . . . . . . . . Recycling Units 6 | . 2 . 1 . . . . . 1 . . . . . . . . . . . 2 Monitor 1 | . . . . . . . . . . . . . . . . . . . . . 1 Recyclers 3 | . . . 1 . . . . . 1 . . . . . . . . . . . 1 Tunnel 2 | . 2 . . . . . . . . . . . . . . . . . . . . Scanalyzers . | . . . . . . . . . . . . . . . . . . . . . . Garrison Access 4 | . . . 1 1 . . . . . . . . . 1 . . . . . . 1 Jam 4 | . . . 1 1 . . . . . . . . . 1 . . . . . . 1 Data Cores Recovered 1 | . . . 1 . . . . . . . . . . . . . . . . . . Used 1 | . . . 1 . . . . . . . . . . . . . . . . . . Hacking Detections 61 | . 10 . 11 4 . . . . 4 3 3 . 7 8 . . . . . . 11 Full Trace Events 15 | . . . . 1 . . . . . . 3 . 2 4 . . . . . . 5 Feedback Events . | . . . . . . . . . . . . . . . . . . . . . . Feedback Blocked . | . . . . . . . . . . . . . . . . . . . . . . Robot Schematics Acquired 4 | . . . . . . . 4 . . . . . . . . . . . . . . Robots Built . | . . . . . . . . . . . . . . . . . . . . . . Authchips . | . . . . . . . . . . . . . . . . . . . . . . Time . | . . . . . . . . . . . . . . . . . . . . . . Total Robot Build Rating . | . . . . . . . . . . . . . . . . . . . . . . Part Schematics Acquired 15 | . . . 4 . . . 10 . . . . . . . . . . . . . 1 Parts Built 3 | . . . . . . . . . . . . . . 3 . . . . . . . Authchips . | . . . . . . . . . . . . . . . . . . . . . . Time 215 | . . . . . . . . . . . . . . 142 . . . . . . 73 Total Part Build Rating 15 | . . . . . . . . . . . . . . 15 . . . . . . . Parts Repaired 12 | . . . 1 . . . . . . . . . . . . . . . . . 11 Time 682 | . . . 32 . . . . . . . . . . . . . . . . . 650 Parts Recycled . | . . . . . . . . . . . . . . . . . . . . . . Recycled Matter 203 | . . . 136 12 . . . . 33 . . . . . . . . . . . 22 Retrieved Matter 432 | . . . 377 . . . . . 33 . . . . . . . . . . . 22 Retrieved Components . | . . . . . . . . . . . . . . . . . . . . . . Parts Scanalyzed 4 | . . . 3 . . . . . . . . . . . . . . . . . 1 Part Schematics Acquired 4 | . . . 3 . . . . . . . . . . . . . . . . . 1 Parts Damaged . | . . . . . . . . . . . . . . . . . . . . . . Bothacking | -11 -10 -10 -8 -7 -7 -7 -7 -6 -6 -6 -6 -6 -6 -5 -5 -5 -5 -4 -4 -4 -4 ------------ Run | Yrd Mat Sub Mat Fac Low Low Dat Pro Fac Ext Cet Arc Hub Fac Upp Upp War Pro Fac Was Fac Used RIF Installer . | . . . . . . . . . . . . . . . . . . . . . . Robots Hacked . | . . . . . . . . . . . . . . . . . . . . . . Non-combat . | . . . . . . . . . . . . . . . . . . . . . . Combat . | . . . . . . . . . . . . . . . . . . . . . . Robot Hacks Applied . | . . . . . . . . . . . . . . . . . . . . . . Relay Couplers Released 2 | . . . . . . . . . . . . . 2 . . . . . . . . Machine Destruction 2 | . . . . . . . . . . . . . 2 . . . . . . . . Fabnet Peak Effective % . | . . . . . . . . . . . . . . . . . . . . . . Robots Rewired 5 | . . . . . . . . . . . . . . . . . 5 . . . . Allies Hacked . | . . . . . . . . . . . . . . . . . . . . . . Hacks Repelled . | . . . . . . . . . . . . . . . . . . . . . . Allies | -11 -10 -10 -8 -7 -7 -7 -7 -6 -6 -6 -6 -6 -6 -5 -5 -5 -5 -4 -4 -4 -4 -------- Run | Yrd Mat Sub Mat Fac Low Low Dat Pro Fac Ext Cet Arc Hub Fac Upp Upp War Pro Fac Was Fac Total Allies 23 | . . . . . . . . . 1 12 5 . . . . . 5 . . . . Largest Group 10 | . . . . . . . . . 1 9 10 5 4 . . . 5 5 4 3 . Highest-Rated Group 742 | . . . . . . . . . 26 371 742 536 379 . . . 244 244 201 158 . Highest-Rated Ally 159 | . . . . . . . . . 26 159 159 152 96 . . . 68 68 68 68 . Total Orders . | . . . . . . . . . . . . . . . . . . . . . . Ally Attacks 232 | . . . . . . . . . . 44 77 17 66 . . . 10 10 . 8 . Total Damage 6474 | . . . . . . . . . . 860 1701 600 2106 . . . 616 260 . 331 . Kills 48 | . . . . . . . . . . 6 9 4 20 . . . 4 5 . . . Allies Corrupted 2 | . . . . . . . . . . 1 . . 1 . . . . . . . . Allies Melted . | . . . . . . . . . . . . . . . . . . . . . . Intel | -11 -10 -10 -8 -7 -7 -7 -7 -6 -6 -6 -6 -6 -6 -5 -5 -5 -5 -4 -4 -4 -4 ------- Run | Yrd Mat Sub Mat Fac Low Low Dat Pro Fac Ext Cet Arc Hub Fac Upp Upp War Pro Fac Was Fac Robot Analysis Total 2 | . 2 . . . . . . . . . . . . . . . . . . . . Derelict Logs Recovered 11 | . . 2 . . 1 2 . 1 . . . . . . 1 3 . 1 . . . Drone Launches . | . . . . . . . . . . . . . . . . . . . . . . Drone Recoveries . | . . . . . . . . . . . . . . . . . . . . . . Exploration | -11 -10 -10 -8 -7 -7 -7 -7 -6 -6 -6 -6 -6 -6 -5 -5 -5 -5 -4 -4 -4 -4 ------------- Run | Yrd Mat Sub Mat Fac Low Low Dat Pro Fac Ext Cet Arc Hub Fac Upp Upp War Pro Fac Was Fac Turns Passed 22248 | 92 3179 4160 2406 1031 829 336 35 409 329 869 458 609 726 1922 331 1032 673 518 20 95 2189 Spaces Moved 18678 | 40 1572 2418 1093 1173 861 506 103 621 646 871 431 466 771 2183 479 1051 715 384 39 148 2107 Core 150 | 2 . . . . . . . . . . . . . . . . . . . . 148 Treads 3669 | . 151 2418 1093 7 . . . . . . . . . . . . . . . . . Legs 1459 | 38 1421 . . . . . . . . . . . . . . . . . . . . Wheels . | . . . . . . . . . . . . . . . . . . . . . . Hover 13400 | . . . . 1166 861 506 103 621 646 871 431 466 771 2183 479 1051 715 384 39 148 1959 Flight . | . . . . . . . . . . . . . . . . . . . . . . Fastest Speed 30 | 50 120 160 160 34 34 34 34 34 30 35 35 40 40 51 52 52 44 109 43 43 43 Average Speed 81 | 135 178 160 161 35 34 34 34 34 31 36 58 99 48 58 52 52 52 109 43 43 48 Slowest Speed 240 | 190 240 240 165 161 94 34 34 94 35 96 102 115 117 124 52 52 109 109 43 43 150 Overloaded Moves . | . . . . . . . . . . . . . . . . . . . . . . Propulsion Burnouts . | . . . . . . . . . . . . . . . . . . . . . . Robots Hopped . | . . . . . . . . . . . . . . . . . . . . . . Cave-ins Triggered . | . . . . . . . . . . . . . . . . . . . . . . Exploration Rate (%) 61 | 5 100 96 66 19 68 65 70 75 15 81 77 98 49 30 67 82 91 56 2 84 56 Regions Visited 21 Branch Regions 13 Pre-discovered Areas 8 | . 4 1 . . . . 1 . . . . . . . 1 1 . . . . . Known Exits Taken 16 | . . . 1 1 1 1 1 1 1 1 1 1 1 1 1 1 1 1 . . . Unknown Exits Taken 3 | 1 1 1 . . . . . . . . . . . . . . . . . . . Scrap Searched 21 | . . 10 . . 3 3 . . . . . . . . 1 2 . 2 . . . Spaces Dug 72 | . . . 1 16 10 . . . 3 . . . 27 7 . 6 . . . . 2 Terrain Destroyed 1017 | . 37 241 46 18 41 . . . 3 43 80 2 324 16 65 7 . . . 1 93 Melee 25 | . . . 1 15 . . . . 3 . . . 2 4 . . . . . . . Projectile 56 | . . . 16 1 . . . . . . 1 2 7 12 . 7 . . . 1 9 AOE 936 | . 37 241 29 2 41 . . . . 43 79 . 315 . 65 . . . . . 84 Terrain Rammed . | . . . . . . . . . . . . . . . . . . . . . . Walls Destroyed . | . . . . . . . . . . . . . . . . . . . . . . Machines Disabled . | . . . . . . . . . . . . . . . . . . . . . . Actions | -11 -10 -10 -8 -7 -7 -7 -7 -6 -6 -6 -6 -6 -6 -5 -5 -5 -5 -4 -4 -4 -4 --------- Run | Yrd Mat Sub Mat Fac Low Low Dat Pro Fac Ext Cet Arc Hub Fac Upp Upp War Pro Fac Was Fac Total 24763 | 61 1838 2584 1555 1726 1376 669 102 793 756 1384 600 557 1065 2715 555 1506 1022 483 42 172 3202 Wait 4838 | . 162 22 296 462 490 158 . 160 84 460 135 55 213 404 59 427 181 99 . 19 952 Move 18658 | 39 1571 2417 1092 1172 860 505 102 620 645 870 430 465 770 2182 478 1050 714 383 39 147 2107 Hop . | . . . . . . . . . . . . . . . . . . . . . . Pick Up 98 | 2 14 7 16 7 4 1 . . 5 1 2 . 2 12 1 . 10 . 1 . 13 Fast Attach 76 | 6 3 6 10 2 2 1 . . . 1 2 3 5 4 1 . 12 . . . 18 Attach 41 | . . 6 2 1 . . . . 2 . 2 . 1 9 3 . . . 2 . 13 Detach 13 | . . 1 . . . . . . . . 1 . 1 1 3 . . . . . 6 Swap 205 | 1 17 21 19 27 6 2 . 5 9 9 3 3 21 22 3 14 4 1 . . 18 Drop 134 | . 11 13 24 8 5 2 . . 5 2 3 . 9 10 2 . 27 . . . 13 Fire 465 | 13 47 54 86 24 9 . . 8 . 17 22 14 27 59 5 15 . . . 6 59 Melee 107 | . 13 36 1 22 . . . . 6 . . 17 3 9 . . . . . . . Ram 3 | . . . . . . . . . . . . . . . . . . . . . 3 Kick . | . . . . . . . . . . . . . . . . . . . . . . Crush 9 | . . . 9 . . . . . . . . . . . . . . . . . . Escape Stasis 40 | . . . . . . . . . . 24 . . 13 3 . . . . . . . Rewire 74 | . . . . . . . . . . . . . . . . . 74 . . . . Trap . | . . . . . . . . . . . . . . . . . . . . . . Miscellaneous 2 | . . 1 . 1 . . . . . . . . . . . . . . . . . Route ------- -11/Scrapyard -10/Materials (discovered 6 exits: *Mat x3 / [*Min x2] / *Sub) -10/Subcaves (discovered 3 exits: *Mat x2 / Rec) -8/Materials (discovered 3 exits: *Fac x3) -7/Factory (discovered 2 exits: Sto / *Low) -7/Lower Caves -7/Lower Caves (discovered 2 exits: *Fac / *Dat) -7/Data Miner -6/Proximity Caves -6/Factory (discovered 3 exits: *Fac / Low / *Ext) -6/Extension (discovered 2 exits: *Fac / *Cet) -6/Cetus (discovered 3 exits: *Fac x2 / *Arc) -6/Archives (discovered 3 exits: *Fac / *Hub x2) -6/Hub_04(d) -5/Factory (discovered 3 exits: *Fac / *Upp x2) -5/Upper Caves -5/Upper Caves (discovered 2 exits: *Fac / *War) -5/Warlord -4/Proximity Caves -4/Factory -4/Waste -4/Factory (discovered 1 exit: *Res) History --------- Turn | Location | Event 21 | -11/Scrapyard | Discovered new exit (range 16) 93 | -11/Scrapyard | Entered Materials 143 | -10/Materials | Discovered new exit (range 5) 308 | -10/Materials | Build established: Mutant 610 | -10/Materials | Discovered new exit (range 16) 737 | -10/Materials | Discovered new exit (range 6) 1263 | -10/Materials | Discovered new exit (range 7) 1276 | -10/Materials | Learned Storage stockpile data 1420 | -10/Materials | Discovered new exit (range 10) 1432 | -10/Materials | Learned Storage interactive machine intel 1466 | -10/Materials | Learned location of Recycling (-7) 1491 | -10/Materials | Learned location of 1 exit from Recycling 1507 | -10/Materials | Learned Materials stockpile data 1613 | -10/Materials | Identified exit to Materials 1613 | -10/Materials | Learned location of 1 exit from Materials 3272 | -10/Materials | Entered Subcaves 3273 | -10/Subcaves | Identified exit to Recycling 3296 | -10/Subcaves | Shifting Twisted Machinery released Barrage Gun 3931 | -10/Subcaves | Discovered new exit (range 13) 4411 | -10/Subcaves | Released subatomizers from SUBCON Basin 5072 | -10/Subcaves | Learned Materials terminal intel 5253 | -10/Subcaves | Discovered new exit (range 14) 5363 | -10/Subcaves | Disturbed a concealed Subdweller 5576 | -10/Subcaves | Shifting Twisted Machinery released Battle Cannon 5737 | -10/Subcaves | Shifting Twisted Machinery released Flamer 5751 | -10/Subcaves | Shifting Twisted Machinery released Sub. Monowheel 5803 | -10/Subcaves | A swath of the cavern ceiling suddenly collapsed 6204 | -10/Subcaves | A swath of the cavern ceiling suddenly collapsed 6239 | -10/Subcaves | Disturbed a concealed Subdweller 6425 | -10/Subcaves | Visited Clippyterm 6430 | -10/Subcaves | Learned Factory trap positions 6737 | -10/Subcaves | Learned location of Zion (-6) 6737 | -10/Subcaves | Met a Zionite searching for "candidates" 6870 | -10/Subcaves | Build established: Derelict-Mutant 7124 | -10/Subcaves | Visited 4L-MR0's lab 7142 | -10/Subcaves | Found Meta Core 7143 | -10/Subcaves | Attached Meta Core, gained temporary slots: Propulsion, Utility, Weapon 7432 | -10/Subcaves | Entered Materials 7432 | -8/Materials | Evolved 4 slots: Propulsion x2, Utility x2 7433 | -8/Materials | Identified exit to Factory 7435 | -8/Materials | Loaded intel: 12 terminal locations 7446 | -8/Materials | Build established: Derelict-Tank 8013 | -8/Materials | Destroyed 9 combat bots 8389 | -8/Materials | Lost 3 parts (1n2w) 8393 | -8/Materials | Build established: Tank 8636 | -8/Materials | Repaired Multitool 8747 | -8/Materials | Build established: Skirmisher 9387 | -8/Materials | Learned Factory trap positions 9442 | -8/Materials | Learned Storage stockpile data 9489 | -8/Materials | Learned Factory recycling unit intel 9528 | -8/Materials | Learned 2 Lower Caves zone layouts 9579 | -8/Materials | Learned location of 2 exits from Lower Caves 9610 | -8/Materials | Learned location of 1 exit from Extension 9650 | -8/Materials | Learned Storage trap positions 9723 | -8/Materials | Build established: Mutant 9838 | -8/Materials | Entered Factory 9838 | -7/Factory | Evolved 2 slots: Propulsion x1, Utility x1 9839 | -7/Factory | Identified exit to Storage 9840 | -7/Factory | Loaded intel: 112 trap records 9841 | -7/Factory | Loaded intel: 6 recycling unit locations 10483 | -7/Factory | Discovered new exit (range 7) 10487 | -7/Factory | Identified exit to Lower Caves 10869 | -7/Factory | Entered Lower Caves 10870 | -7/Lower Caves | Identified exit to Lower Caves 10871 | -7/Lower Caves | Attracted the attention of an 0b10 checkpoint 10918 | -7/Lower Caves | Spotted B-75 Beast 10956 | -7/Lower Caves | Learned 12 Factory zone layouts 11090 | -7/Lower Caves | Encountered a Warlord checkpoint 11698 | -7/Lower Caves | Entered another Lower Caves area 11699 | -7/Lower Caves | Identified exit to Data Miner 11705 | -7/Lower Caves | Encountered a Warlord checkpoint 11803 | -7/Lower Caves | Discovered new exit (range 5) 11804 | -7/Lower Caves | Identified exit to Factory 11852 | -7/Lower Caves | Learned location of 1 exit from Proximity Caves 11859 | -7/Lower Caves | Learned 12 Factory zone layouts 11864 | -7/Lower Caves | Found DCF Scrap (13 items) 12034 | -7/Lower Caves | Entered Data Miner 12034 | -7/Data Miner | Discovered new exit (range 6) 12036 | -7/Data Miner | Identified exit to Proximity Caves 12041 | -7/Data Miner | Met Data Miner 12048 | -7/Data Miner | Learned location of Section 7 (-2) 12048 | -7/Data Miner | Acquired the access code to Warlord's prototype stash 12062 | -7/Data Miner | Received God Mode back door access code from Data Miner 12069 | -7/Data Miner | Entered Proximity Caves 12207 | -6/Proximity Caves | Spotter reported a threat 12225 | -6/Proximity Caves | Spotter reported a threat 12245 | -6/Proximity Caves | Attracted the attention of an 0b10 checkpoint 12286 | -6/Proximity Caves | Spotter reported a threat 12410 | -6/Proximity Caves | Spotter reported a threat 12459 | -6/Proximity Caves | Spotted B-75 Beast 12478 | -6/Proximity Caves | Entered Factory 12478 | -6/Factory | Evolved 2 slots: Power x1, Propulsion x1 12479 | -6/Factory | Identified exit to Lower Caves 12479 | -6/Factory | Identified exit to Factory 12480 | -6/Factory | Loaded intel: 126 trap records 12691 | -6/Factory | Discovered new exit (range 10) 12800 | -6/Factory | Identified exit to Extension 12807 | -6/Factory | Entered Extension 12807 | -6/Extension | Accompanied by 1 ally 12808 | -6/Extension | Identified exit to Cetus 12954 | -6/Extension | Rescued a captive Derelict 12967 | -6/Extension | Rescued a captive Derelict 12967 | -6/Extension | Rescued a captive Derelict 13095 | -6/Extension | Rescued a captive Derelict 13096 | -6/Extension | Rescued a captive Derelict 13135 | -6/Extension | Rescued A7 13136 | -6/Extension | Rescued a captive Derelict 13136 | -6/Extension | Rescued a captive Derelict 13141 | -6/Extension | Rescued a captive Derelict 13360 | -6/Extension | Spotted B-75 Beast 13379 | -6/Extension | Destroyed B-75 Beast 13389 | -6/Extension | Spotted B-75 Beast 13400 | -6/Extension | Destroyed B-75 Beast 13445 | -6/Extension | Rescued a captive Derelict 13450 | -6/Extension | Rescued a captive Derelict 13562 | -6/Extension | Discovered exit to Factory (range 15) 13579 | -6/Extension | Rescued a captive Derelict 13676 | -6/Extension | Entered Cetus 13676 | -6/Cetus | Accompanied by 9 allies (A7) 13681 | -6/Cetus | Acquired a Cetus Manufacturing Module code from A7 13681 | -6/Cetus | Spotted Cetus Guard 13683 | -6/Cetus | Spotted Cetus Guard 13690 | -6/Cetus | Spotted Cetus Guard 13700 | -6/Cetus | Spotted Cetus Guard 13701 | -6/Cetus | Allies destroyed Cetus Guard 13702 | -6/Cetus | Destroyed Cetus Guard 13707 | -6/Cetus | Allies destroyed Cetus Guard 13719 | -6/Cetus | Allies destroyed Cetus Guard 13736 | -6/Cetus | Discovered exit to Factory (range 16) 13742 | -6/Cetus | Lost 4 allies 13765 | -6/Cetus | Started Cetus Manufacturing Module 13784 | -6/Cetus | Incoming investigation squad redirected 13790 | -6/Cetus | Manufactured an Enhanced Grunt 13815 | -6/Cetus | Manufactured an Enhanced Grunt 13840 | -6/Cetus | Manufactured an Enhanced Grunt 13865 | -6/Cetus | Manufactured an Enhanced Grunt 13890 | -6/Cetus | Manufactured an Enhanced Grunt 13913 | -6/Cetus | Discovered new exit (range 15) 13917 | -6/Cetus | Identified exit to Archives 13953 | -6/Cetus | Spotted Cetus Guard 13957 | -6/Cetus | Spotted Cetus Guard 13962 | -6/Cetus | Allies destroyed Cetus Guard 13967 | -6/Cetus | Spotted Cetus Guard 13969 | -6/Cetus | Destroyed Cetus Guard 13975 | -6/Cetus | Spotted Cetus Guard 13983 | -6/Cetus | Allies destroyed Cetus Guard 13986 | -6/Cetus | Allies destroyed Cetus Guard 14002 | -6/Cetus | Discovered exit to Factory (range 16) 14008 | -6/Cetus | Lost 5 allies 14008 | -6/Cetus | Met Revision 17 14134 | -6/Cetus | Entered Archives 14134 | -6/Archives | Accompanied by 5 allies (A7) 14149 | -6/Archives | Build established: Commander-Mutant 14210 | -6/Archives | Unable to access archive contents 14212 | -6/Archives | Discovered new exit (range 15) 14247 | -6/Archives | Unable to access archive contents 14251 | -6/Archives | Discovered new exit (range 14) 14260 | -6/Archives | Unable to access archive contents 14265 | -6/Archives | Discovered exit to Factory (range 13) 14275 | -6/Archives | Unable to access archive contents 14374 | -6/Archives | Identified exit to Hub_04(d) 14743 | -6/Archives | Entered Hub_04(d) 14743 | -6/Hub_04(d) | Accompanied by 4 allies 14781 | -6/Hub_04(d) | Build established: Scavenger-Mutant 14909 | -6/Hub_04(d) | Spotted B-75 Beast 14916 | -6/Hub_04(d) | Allies destroyed B-75 Beast 15031 | -6/Hub_04(d) | Discovered exit to Factory (range 11) 15183 | -6/Hub_04(d) | Incoming assault squad redirected 15325 | -6/Hub_04(d) | Network Hub disabled 15401 | -6/Hub_04(d) | Spotted Lightning 15401 | -6/Hub_04(d) | Spotted Lightning 15415 | -6/Hub_04(d) | Spotted Lightning 15457 | -6/Hub_04(d) | Lost 4 parts (3n1w) 15469 | -6/Hub_04(d) | Entered Factory 15469 | -5/Factory | Evolved 2 slots: Utility x2 15470 | -5/Factory | Identified exit to Upper Caves 15708 | -5/Factory | Incoming investigation squad redirected 15716 | -5/Factory | Fabricated Hvy. Assault Cannon (x1) 15893 | -5/Factory | Discovered new exit (range 5) 15930 | -5/Factory | Identified exit to Factory 15949 | -5/Factory | Fabricated Cmb. Gravmag System? 16812 | -5/Factory | Build established: Scout 17269 | -5/Factory | First assault squad dispatched 17391 | -5/Factory | Entered Upper Caves 17438 | -5/Upper Caves | Encountered a Warlord checkpoint 17679 | -5/Upper Caves | Discovered new exit (range 12) 17721 | -5/Upper Caves | Identified exit to Upper Caves 17722 | -5/Upper Caves | Entered another Upper Caves area 17815 | -5/Upper Caves | Attracted the attention of an 0b10 checkpoint 18089 | -5/Upper Caves | Discovered exit to Factory (range 18) 18366 | -5/Upper Caves | Learned location of 1 exit from Factory 18686 | -5/Upper Caves | Learned Factory emergency access door positions 18745 | -5/Upper Caves | Discovered new exit (range 12) 18753 | -5/Upper Caves | Identified exit to Warlord 18754 | -5/Upper Caves | Entered Warlord 18772 | -5/Warlord | System corruption cleaned by Quarantine Array 18901 | -5/Warlord | Met Warlord 18905 | -5/Warlord | Opened Warlord's prototype stash 18910 | -5/Warlord | Found Prototype Device 18910 | -5/Warlord | Identified Exp. Cloaking Device 18914 | -5/Warlord | Warlord's base attacked by MAIN.C 18924 | -5/Warlord | Found Prototype Device 18924 | -5/Warlord | Identified Thermal Barrier 18926 | -5/Warlord | Found Prototype Processor 18926 | -5/Warlord | Identified Exp. Target Analyzer 18934 | -5/Warlord | Found Prototype Reactor 18934 | -5/Warlord | Identified Vortex Chain Reactor 18960 | -5/Warlord | Found Prototype Launcher 18960 | -5/Warlord | Identified Vortex Catalyst Activator 19264 | -5/Warlord | Warlord forces counterattacked 19296 | -5/Warlord | Spotted Executioner 19307 | -5/Warlord | Spotted Executioner 19308 | -5/Warlord | Found Prototype Ballistic Cannon 19308 | -5/Warlord | Identified Hvy. Autocannon 19316 | -5/Warlord | Allies destroyed Executioner 19320 | -5/Warlord | Found Hvy. Autocannon 19338 | -5/Warlord | Lost 10 allies 19386 | -5/Warlord | Discovered new exit (range 16) 19399 | -5/Warlord | Identified exit to Proximity Caves 19427 | -5/Warlord | Entered Proximity Caves 19427 | -4/Proximity Caves | Accompanied by 5 allies 19523 | -4/Proximity Caves | Spotted B-86 Titan 19600 | -4/Proximity Caves | Build established: Commander-Skirmisher 19904 | -4/Proximity Caves | Discovered exit to Factory (range 15) 19945 | -4/Proximity Caves | Entered Factory 19945 | -4/Factory | Accompanied by 4 allies 19945 | -4/Factory | Evolved 2 slots: Propulsion x1, Utility x1 19946 | -4/Factory | Identified exit to Upper Caves 19965 | -4/Factory | Sucked down chute 19965 | -4/Factory | Entered Waste 19969 | -4/Waste | Spotted C-40 Crusher 19969 | -4/Waste | Spotted C-40 Crusher 19978 | -4/Waste | Destroyed C-40 Crusher 19980 | -4/Waste | EMP discharged 20002 | -4/Waste | Spotted C-40 Crusher 20002 | -4/Waste | Spotted C-40 Crusher 20003 | -4/Waste | Spotted C-40 Crusher 20047 | -4/Waste | Spotted C-40 Crusher 20050 | -4/Waste | 4 allies followed down the chute 20056 | -4/Waste | Discovered new exit (range 10) 20059 | -4/Waste | Identified exit to Factory 20060 | -4/Waste | Entered Factory 20248 | -4/Factory | Build established: Scout 20797 | -4/Factory | Discovered new exit (range 14) 20803 | -4/Factory | Identified exit to Research 20889 | -4/Factory | Repaired Imp. Antigrav System 20946 | -4/Factory | Repaired Cmb. Gravmag System 20998 | -4/Factory | Repaired Cmb. Airjet 21107 | -4/Factory | Repaired Adv. Sensor Array? 21161 | -4/Factory | Repaired Imp. Cooling System? 21410 | -4/Factory | Repaired Cmb. Gravmag System 21461 | -4/Factory | Repaired Imp. Medium Armor Plating 21524 | -4/Factory | Repaired Imp. Antigrav System 21633 | -4/Factory | Repaired Cld. Antigrav System 21691 | -4/Factory | Repaired Cmb. Gravmag System 21754 | -4/Factory | Repaired Lgt. Antimatter Reactor 21834 | -4/Factory | Cargo convoy interrupted 21874 | -4/Factory | Spotted B-86 Titan 21973 | -4/Factory | Incoming investigation squad redirected 22060 | -4/Factory | First assault squad dispatched 22065 | -4/Factory | Incoming investigation squad redirected 22142 | -4/Factory | System corruption reached 10% 22166 | -4/Factory | Core integrity fell below 50% 22197 | -4/Factory | Incoming assault squad redirected 22203 | -4/Factory | Lost 12 parts (3p6n2u1w) 22210 | -4/Factory | Core integrity fell below 20% 22226 | -4/Factory | Build established: Mutant 22249 | -4/Factory | Destroyed by H-71 Marshal with Heavy Mass Driver Last Messages --------------- 22231_ >> MONITOR: Recycling Unit F006 accepting Phasing Sabre (100%). 22234_ Slammed into A-15 Conveyor. 22234_ K-01 Serf cleans the Pressure Siphon. 22234_ >> MONITOR: Recycling Unit F006 accepting Lgt. Ion Engine (100%). 22237_ >> MONITOR: Recycling Unit F006 accepting Imp. Heat Sink (92%). 22240_ >> MONITOR: Recycling Unit F006 accepting Autogun (46%). 22243_ Slammed into K-01 Serf. 22243_ K-01 Serf knocked back. 22243_ >> MONITOR: Recycling Unit F006 accepting Corrupted VTOL Module (28%). 22246_ >> MONITOR: Recycling Unit F006 accepting Corrupted Wheel (80%). 22247_ Enh. Optical Array destroyed. 22247_ Critical hit (Blast). 22247_ Knocked back. 22249_ Penetrated by Slug. Map ----- +----------------------------------------------------+ | ########## # #?????????????????? | | # ## # #?????????????????? | | # ## # #???##############? | | # ## ################ #???# """G""" #? | | # ## #??????????????# #???# """ """ ## | | # ## #??????????????# #???# + | | # ## #??????????????# #???# ## | | # ## #???????######## ##### #? | | # ## #???????# # #? | | #[ ## ####????# # ## | | # + #????# + # | | # # #??### # # | | ?###+#### #? # # # | | ???# #? # ###### # # | | ???# # # #????# # # | | ???# # # #????# ##+########### | | ???# + # #????# ????????????# | | ############# # # #????# ????????????# | | # # # # #????# ???????????# | | # # #? # #????####???????????# | | # # #? # #???????????????????# | | # # ######k ###?????????????????# | | # # s % #?????????????????# | | # # #?????????????????#! | | # + H< #?????????????????# | | # # % @ #?????????????????# | | # ! # #?????????????????# | | #""" ####+###########?????????????????# | | #"R # #???????????????????## | | #""" # #????????????????????? | | # # """" """" #????????????????????? | | ############# """" """" #????????????????????? | | ????????????# """" """" #????????????????????? | | ????????????# """" """" #????????????????????? | | ????????????# #????????????????????? | | ????????????# """" """" #????????????????????? | | ????????????# """" """" #????????????????????? | | ????????????# """" """" #????????????????????? | | ????????????# """" """" #????????????????????? | | ????????????# #????????????????????? | | ????????????#?#########?##????????????????????? | | ??????????????????????????????????????????????? | | ??????????????????????????????????????????????? | | ??????????????????????????????????????????????? | | ??????????????????????????????????????????????? | | ??????????????????????????????????????????????? | | | | | | | | | +----------------------------------------------------+ Best States ------------- Heat Dissipation 67 Energy Generation 55 Energy Capacity 700 Matter Stores 300 Matter Capacity 700 Sight Range 22 Robot Scan Range 16 Terrain Scan Density 10 ECM Strength 1 Jamming Range 14 Armor Coverage 450 Resistance: KI 30 Resistance: TH 50 Evasion (%) 59 Targeting Accuracy 28 Target Analysis 10 Core Analysis 6 Recoil Reduction 5 Matter Filtering 30 Offensive Hacking 10 Item Schematics ----------------- Aerolev Unit | -8/Materials | Scanalyzed Grenade Launcher | -8/Materials | Scanalyzed Multitool | -8/Materials | Scanalyzed Hvy. Assault Cannon | -8/Materials | Hacked Combat Drone Bay | -7/Data Miner | Free Lgt. Regenerative Plating | -7/Data Miner | Free Cld. Aerolev Unit | -7/Data Miner | Free Gravity Neutralizer | -7/Data Miner | Free Imp. Heavy Laser | -7/Data Miner | Free Cmb. Gravmag System | -7/Data Miner | Free Imp. Focal Shield | -7/Data Miner | Free Imp. Plasma Cutter | -7/Data Miner | Free Imp. Weapon Cycler | -7/Data Miner | Free Adv. Thermal Shield | -7/Data Miner | Free Cld. Antigrav System | -4/Factory | Scanalyzed Robot Schematics ------------------ A-15 Conveyor | -7/Data Miner | Free E-15 Imp | -7/Data Miner | Free H-66 Slayer | -7/Data Miner | Free L-41 Fighter | -7/Data Miner | Free Fabricated ------------ Hvy. Assault Cannon | x1 | -5/Factory Cmb. Gravmag System | x2 | -5/Factory Alien Tech Used ----------------- None Achievements -------------- Reappropriation Challenges ------------ None Game ------ Seed AerolevParticleProtomatter Manual? 0 Play Time 05:25:13 Cumulative 91.1 hours Start 2024.09.12 @ 09:20:59 End 2024.09.12 @ 15:14:18 Sessions 1 Manual Loads 0 Difficulty Rogue Special Mode None Game No. 41 Rogue 41 Adventurer 0 Explorer 0 Win Type - Total 2 Types 2/0/0/0/0/0/0/0/0 Lore% 39 Gallery% 47 Achievement% 43 Wizard Run 0 Options --------- Layout 1 ASCII 0 Keyboard 0 Movement Vi Keybinds 0 Fullscreen 1 Font 24/Smallcaps Map View 50x35 Zoom Use 0% Tactical HUD 1 Map Filters NONE Filters NONE Steam 1 RUN: 0edce15e-d407-4dc0-ba15-3fca6cdfac6b